fUSD/lending_fUSD_20251118
["ID","MTS","AMOUNT","RATE_DAILY","PERIOD"]
[394345536,1763477455726,-151.0,0.00041637,120]
[394345537,1763477455736,-151.0,0.00041637,120]
[394345538,1763477455746,-145.30001733,0.00041637,120]
[394345539,1763477455758,-5.69998267,0.00041637,120]
[394345540,1763477455767,-227.822968,0.00041637,120]
[394345541,1763477455777,-32.06286056,0.00041637,120]
[394345542,1763477455806,-250.0,0.00026839,2]
[394345543,1763477455816,-150.0,0.00029839,2]
[394345544,1763477455825,-159.86537393,0.00041536,2]
[394345545,1763477455835,-204.22245444,0.00041637,120]
[394345546,1763477455845,-236.285315,0.00041637,120]
[394345547,1763477455854,-236.285315,0.00041637,120]
[394345548,1763477455864,-236.285315,0.00041637,120]
[394345549,1763477455875,-236.285315,0.00041637,120]
[394345550,1763477455885,-236.285315,0.00041637,120]
[394345551,1763477455894,-236.285315,0.00041637,120]
[394345552,1763477455904,-236.285315,0.00041637,120]
[394345553,1763477455913,-151.0,0.00041637,120]
[394345554,1763477455923,-236.285315,0.00041637,120]
[394345555,1763477455932,-151.996499,0.00041637,120]
[394345556,1763477455942,-236.285315,0.00041637,120]
[394345557,1763477455951,-236.285315,0.00041637,120]
[394345558,1763477455960,-236.285315,0.00041637,120]
[394345559,1763477455970,-236.285315,0.00041637,120]
[394345560,1763477455980,-236.285315,0.00041637,120]
[394345561,1763477455990,-236.285315,0.00041637,120]
[394345562,1763477456000,-236.285315,0.00041637,120]
[394345563,1763477456009,-236.285315,0.00041637,120]
[394345564,1763477456019,-236.285315,0.00041637,120]
[394345565,1763477456028,-236.285315,0.00041637,120]
[394345566,1763477456037,-236.285323,0.00041637,120]
[394345567,1763477456047,-151.0,0.00041637,120]
[394345568,1763477456056,-151.0,0.00041637,120]
[394345569,1763477456064,-151.0,0.00041637,120]
[394345570,1763477456072,-151.0,0.00041637,120]
[394345571,1763477456081,-151.0,0.00041637,120]
[394345572,1763477456090,-151.0,0.00041637,120]
[394345573,1763477456100,-151.0,0.00041637,120]
[394345574,1763477456109,-151.0,0.00041637,120]
[394345575,1763477456119,-151.0,0.00041637,120]
[394345576,1763477456130,-151.0,0.00041637,120]
[394345577,1763477456139,-162.154812,0.00041637,120]
[394345578,1763477456148,-158.29204,0.00041637,120]
[394345579,1763477456157,-49.60998108,0.00041637,120]
[394345580,1763477456169,-101.39001892,0.00041637,120]
[394345581,1763477456178,-151.0,0.00041637,120]
[394345582,1763477456187,-151.0,0.00041637,120]
[394345583,1763477456196,-151.0,0.00041637,120]
[394345584,1763477456205,-245.93764,0.00041637,120]
[394345585,1763477456214,-151.0,0.00041637,120]
[394345586,1763477456223,-151.0,0.00041637,120]
[394345587,1763477456232,-151.0,0.00041637,120]
[394345588,1763477456242,-151.0,0.00041637,120]
[394345589,1763477456251,-4.57803862,0.00041637,120]
[394345590,1763477456262,-146.42196138,0.00041637,120]
[394345591,1763477456272,-151.0,0.00041637,120]
[394345592,1763477456281,-151.0,0.00041637,120]
[394345593,1763477456291,-151.0,0.00041637,120]
[394345594,1763477456300,-151.0,0.00041637,120]
[394345595,1763477456310,-41.33507406,0.00041637,120]
[394345596,1763477456325,-150.0,0.00032839,2]
[394345597,1763477456335,-109.66492594,0.00041637,120]
[394345598,1763477456344,-187.304561,0.00041637,120]
[394345599,1763477456353,-151.0,0.00041637,120]
[394345600,1763477456363,-287.767349,0.00041637,120]
[394345601,1763477456373,-151.0,0.00041637,120]
[394345602,1763477456383,-151.0,0.00041637,120]
[394345603,1763477456393,-281.44887,0.00041637,120]
[394345604,1763477456402,-161.26817,0.00041637,120]
[394345605,1763477456412,-151.0,0.00041637,120]
[394345606,1763477456422,-197.460033,0.00041637,120]
[394345607,1763477456431,-197.460033,0.00041637,120]
[394345608,1763477456441,-197.460033,0.00041637,120]
[394345609,1763477456450,-197.460033,0.00041637,120]
[394345610,1763477456460,-197.460033,0.00041637,120]
[394345611,1763477456469,-197.460033,0.00041637,120]
[394345612,1763477456479,-197.460033,0.00041637,120]
[394345613,1763477456489,-151.0,0.00041637,120]
[394345614,1763477456498,-197.460033,0.00041637,120]
[394345615,1763477456508,-151.0,0.00041637,120]
[394345616,1763477456517,-151.0,0.00041637,120]
[394345617,1763477456526,-151.0,0.00041637,120]
[394345618,1763477456536,-55.76094006,0.00041637,120]
[394345619,1763477456547,-141.69909294,0.00041637,120]
[394345620,1763477456557,-151.0,0.00041637,120]
[394345621,1763477456566,-151.0,0.00041637,120]
[394345622,1763477456576,-151.0,0.00041637,120]
[394345623,1763477456585,-151.0,0.00041637,120]
[394345624,1763477456594,-197.460033,0.00041637,120]
[394345625,1763477456604,-151.0,0.00041637,120]
[394345626,1763477456613,-220.186159,0.00041637,120]
[394345627,1763477456622,-68.88126214,0.00041637,120]
[394345628,1763477456634,-82.11873786,0.00041637,120]
[394345629,1763477456643,-151.0,0.00041637,120]
[394345630,1763477456652,-197.460033,0.00041637,120]
[394345631,1763477456661,-151.0,0.00041637,120]
[394345632,1763477456670,-151.0,0.00041637,120]
[394345633,1763477456679,-197.460033,0.00041637,120]
[394345634,1763477456688,-151.0,0.00041637,120]
[394345635,1763477456697,-151.0,0.00041637,120]
[394345636,1763477456711,-197.460033,0.00041637,120]
[394345637,1763477456720,-197.460033,0.00041637,120]
[394345638,1763477456729,-151.0,0.00041637,120]
[394345639,1763477456738,-197.460033,0.00041637,120]
[394345640,1763477456748,-151.0,0.00041637,120]
[394345641,1763477456757,-197.460039,0.00041637,120]
[394345642,1763477456767,-151.0,0.00041637,120]
[394345643,1763477456777,-13989.06189279,0.00041637,7]
[394345644,1763477456788,-6652.16,0.00041637,7]
[394345645,1763477456798,-2074.74606667,0.00041637,7]
[394345646,1763477456809,-868.75731878,0.00041637,7]
[394345647,1763477456819,-10264.48088164,0.00041637,7]
[394345648,1763477456832,-904.48898,0.00041637,7]
[394345650,1763477801436,398.04,0.00020851,30]
[394345653,1763478450055,300.0,0.000169,6]
[394345658,1763478538740,236.64952248,0.00030137,120]
[394345660,1763478576908,150.0,0.000175,3]
[394345665,1763478631603,-250.0,0.00017,2]
[394345666,1763478631615,-1725.161,0.00017025,2]
[394345667,1763478631626,-7525.29056494,0.00017173,2]
[394345668,1763478631641,-5546.46810799,0.00017173,2]
[394345669,1763478631657,-300.0,0.00017271,2]
[394345670,1763478631670,-300.0,0.00017271,2]
[394345671,1763478631683,-1200.0,0.00017271,2]
[394345672,1763478631696,-500.0,0.00017272,2]
[394345673,1763478631708,-328.25379855,0.00017272,2]
[394345674,1763478631724,-500.0,0.00017272,2]
[394345675,1763478631738,-500.0,0.00017272,2]
[394345676,1763478631750,-500.0,0.00017272,2]
[394345677,1763478631763,-296.20257369,0.00017272,2]
[394345678,1763478631774,-340.61088104,0.00017272,2]
[394345679,1763478631787,-169.28954527,0.00017272,2]
[394345680,1763478631799,-264678.4189147,0.00017273,2]
[394345681,1763478631828,-1690.68900009,0.00017273,2]
[394345682,1763478631850,-500.0,0.00017273,2]
[394345713,1763478637663,-493130.89208521,0.00017273,2]
[394345714,1763478637675,-500.0,0.00017273,2]
[394345715,1763478637686,-500.0,0.00017273,2]
[394345716,1763478637697,-500.0,0.00017372,2]
[394345717,1763478637707,-500.0,0.00017372,2]
[394345718,1763478637718,-500.0,0.00017372,2]
[394345719,1763478637732,-500.0,0.00017372,2]
[394345720,1763478637742,-500.0,0.00017372,2]
[394345721,1763478637753,-500.0,0.00017372,2]
[394345722,1763478637764,-500.0,0.00017372,2]
[394345723,1763478637775,-522.12011615,0.00017372,2]
[394345724,1763478637786,-286.15,0.00017372,2]
[394345725,1763478637797,-500.0,0.00017373,2]
[394345726,1763478637808,-500.0,0.00017373,2]
[394345727,1763478637819,-1000.0,0.00017821,2]
[394345728,1763478637830,-1000.0,0.00017821,2]
[394345729,1763478637841,-1000.0,0.00017921,2]
[394345730,1763478637852,-760.22802213,0.00017921,2]
[394345731,1763478637863,-241.2,0.00017939,2]
[394345732,1763478637873,-1500.0,0.00018368,2]
[394345733,1763478637885,-1500.0,0.00018368,2]
[394345734,1763478637895,-1481.72662535,0.00018468,2]
[394345735,1763478637907,-250.0,0.000187,2]
[394345736,1763478637918,-300.0,0.000187,2]
[394345737,1763478637929,-250.0,0.000187,2]
[394345738,1763478637940,-250.0,0.000187,2]
[394345739,1763478637951,-420.0,0.00018858,2]
[394345740,1763478637962,-420.0,0.00018858,2]
[394345741,1763478637975,-241.2,0.00018884,2]
[394345742,1763478637986,-1834.85914671,0.00018916,2]
[394345743,1763478637997,-2000.0,0.00018916,2]
[394345744,1763478638007,-1680.0,0.00018952,2]
[394345745,1763478638018,-300.0,0.00019,2]
[394345746,1763478638028,-92691.13880938,0.00019,2]
[394345747,1763478638038,-1812.29493623,0.00019464,2]
[394345748,1763478638053,-7525.2905649,0.00019732,2]
[394345749,1763478638063,-5546.46810791,0.00019732,2]
[394345750,1763478638074,-241.2,0.00019828,2]
[394345751,1763478638319,-587.0,0.00020592,2]
[394345752,1763478638343,-587.0,0.00020592,2]
[394345753,1763478638352,-650.0,0.00020684,14]
[394345754,1763478638362,-241.2,0.00020772,2]
[394345755,1763478638372,-2351.0,0.00020796,2]
[394345756,1763478638382,-350.0,0.00021,2]
[394345757,1763478638391,-241.2,0.00021716,2]
[394345758,1763478638401,-205.79,0.00022,2]
[394345759,1763478638411,-235.0,0.00022484,2]
[394345760,1763478638421,-823.0,0.00022484,2]
[394345761,1763478638431,-3192.26,0.00022562,2]
[394345762,1763478638441,-299.99,0.00022562,7]
[394345763,1763478638451,-9999.99,0.00022562,2]
[394345764,1763478638461,-9729.71,0.00022562,2]
[394345765,1763478638474,-150.99,0.00022562,2]
[394345766,1763478638484,-241.2,0.0002266,2]
[394345767,1763478638494,-479.30025826,0.0002273,2]
[394345768,1763478638504,-3292.0,0.0002282,2]
[394345769,1763478638513,-400.0,0.00023,2]
[394345770,1763478638522,-162.97814708,0.00023515,2]
[394345771,1763478638533,-241.2,0.00023604,2]
[394345772,1763478638543,-205.79,0.00024454,2]
[394345773,1763478638552,-241.2,0.00024549,2]
[394345774,1763478638562,-1017.0,0.00024551,2]
[394345775,1763478638571,-686.0,0.00024658,2]
[394345776,1763478638582,-686.0,0.00024658,2]
[394345777,1763478638591,-686.0,0.00024658,2]
[394345778,1763478638601,-686.0,0.00024658,2]
[394345779,1763478638611,-153.0,0.00024658,2]
[394345780,1763478638620,-153.0,0.00024658,2]
[394345781,1763478638630,-153.0,0.00024658,2]
[394345782,1763478638640,-153.0,0.00024658,2]
[394345783,1763478638649,-153.0,0.00024658,2]
[394345784,1763478638659,-424.0,0.00024658,2]
[394345785,1763478638669,-424.0,0.00024658,2]
[394345786,1763478638679,-424.0,0.00024658,2]
[394345787,1763478638689,-424.0,0.00024658,2]
[394345788,1763478638699,-424.0,0.00024658,2]
[394345789,1763478638708,-424.0,0.00024658,2]
[394345790,1763478638718,-424.0,0.00024658,2]
[394345791,1763478638732,-153.0,0.00024658,2]
[394345792,1763478638742,-153.0,0.00024658,2]
[394345793,1763478638752,-153.0,0.00024658,2]
[394345794,1763478638763,-153.0,0.00024658,2]
[394345795,1763478638773,-153.0,0.00024658,2]
[394345796,1763478638784,-153.0,0.00024658,2]
[394345797,1763478638794,-153.0,0.00024658,2]
[394345798,1763478638805,-296.0,0.00024658,2]
[394345799,1763478638816,-296.0,0.00024658,2]
[394345800,1763478638827,-296.0,0.00024658,2]
[394345801,1763478638837,-296.0,0.00024658,2]
[394345802,1763478638848,-296.0,0.00024658,2]
[394345803,1763478638858,-296.0,0.00024658,2]
[394345804,1763478638868,-296.0,0.00024658,2]
[394345805,1763478638878,-153.0,0.00024658,2]
[394345806,1763478638889,-153.0,0.00024658,2]
[394345807,1763478638899,-153.0,0.00024658,2]
[394345808,1763478638909,-153.0,0.00024658,2]
[394345809,1763478638920,-153.0,0.00024658,2]
[394345810,1763478638930,-153.0,0.00024658,2]
[394345811,1763478638940,-153.0,0.00024658,2]
[394345812,1763478638951,-593.4,0.00024658,2]
[394345813,1763478638962,-500.0,0.00024773,2]
[394345814,1763478638977,-500.0,0.00024773,2]
[394345815,1763478638987,-200.0,0.00024773,2]
[394345816,1763478638998,-258.73394323,0.0002478,2]
[394345817,1763478639009,-150.75,0.0002479,2]
[394345818,1763478639019,-479.30025826,0.000248,3]
[394345819,1763478639030,-425963.466309,0.000248,3]
[394345820,1763478639040,-21298.1733154,0.0002488,3]
[394345821,1763478639051,-21298.1733154,0.0002489,3]
[394345822,1763478639064,-600.0,0.000249,9]
[394345823,1763478639074,-419399.802469,0.000249,3]
[394345824,1763478639085,-593.4,0.00024932,2]
[394345825,1763478639095,-450.0,0.00025,2]
[394345826,1763478639106,-4609.0,0.00025041,2]
[394345827,1763478639116,-593.4,0.00025205,2]
[394345828,1763478639127,-1000.0,0.00025321,2]
[394345829,1763478639138,-167.72909827,0.0002536,2]
[394345830,1763478639149,-289.0,0.00025414,2]
[394345831,1763478639158,-400.0,0.00025458,2]
[394345832,1763478639168,-593.4,0.00025479,2]
[394345833,1763478639178,-289.0,0.0002548,2]
[394345834,1763478639188,-241.2,0.00025493,2]
[394345835,1763478639198,-20969.9901234,0.00025652,3]
[394345836,1763478639208,-289.0,0.00025662,2]
[394345837,1763478639218,-289.0,0.00025663,2]
[394345838,1763478639233,-593.42,0.00025753,2]
[394345839,1763478639243,-289.0,0.00025838,2]
[394345840,1763478639253,-1500.0,0.00025868,2]
[394345841,1763478639263,-292.0,0.00025871,2]
[394345842,1763478639273,-398.04,0.00025898,30]
[394345843,1763478639283,-289.0,0.00025969,2]
[394345844,1763478639293,-211.74376832,0.00026142,2]
[394345845,1763478639303,-289.0,0.00026344,2]
[394345846,1763478639313,-178.45831871,0.00026416,2]
[394345847,1763478639323,-289.0,0.00026428,2]
[394345848,1763478639333,-241.2,0.00026437,2]
[394345849,1763478639343,-289.0,0.00026575,2]
[394345850,1763478639353,-289.0,0.00026808,2]
[394345851,1763478639363,-289.0,0.00026825,2]
[394345852,1763478639373,-20969.9901234,0.00026848,3]
[394345853,1763478639383,-283.616,0.00026858,2]
[394345854,1763478639392,-150.816,0.00026858,2]
[394345855,1763478639402,-3432.0,0.00026858,2]
[394345856,1763478639411,-609.0,0.00026858,2]
[394345857,1763478639420,-575.0,0.00026858,2]
[394345858,1763478639430,-1318.0,0.00026858,2]
[394345859,1763478639439,-1599.0,0.00026858,2]
[394345860,1763478639448,-821.0,0.00026858,2]
[394345861,1763478639457,-1276.0,0.00026858,2]
[394345862,1763478639467,-793.0,0.00026858,2]
[394345863,1763478639479,-669.024,0.00026858,2]
[394345864,1763478639488,-6490.0,0.00026858,2]
[394345865,1763478639497,-705.0,0.00026858,2]
[394345866,1763478639507,-900.0,0.000269,9]
[394345867,1763478639517,-205.79,0.00026908,7]
[394345868,1763478639526,-289.0,0.00026941,2]
[394345869,1763478639535,-289.0,0.00026987,2]
[394345870,1763478639545,-500.0,0.00027,2]
[394345871,1763478639555,-2500.0025,0.00027113,2]
[394345872,1763478639564,-289.0,0.00027147,2]
[394345873,1763478639574,-41939.9802469,0.000272,3]
[394345874,1763478639584,-41939.9802469,0.0002721,3]
[394345875,1763478639594,-81977.8003,0.0002722,30]
[394345876,1763478639603,-479.30025826,0.0002722,30]
[394345877,1763478639613,-289.0,0.00027371,2]
[394345878,1763478639622,-241.2,0.00027381,2]
[394345879,1763478639631,-289.0,0.00027419,2]
[394345880,1763478639641,-20969.9901234,0.00027443,3]
[394345881,1763478639650,-20969.9901234,0.00027453,3]
[394345882,1763478639660,-6453.0,0.00027478,2]
[394345883,1763478639669,-258.73394319,0.00027572,2]
[394345884,1763478639678,-289.0,0.00027578,2]
[394345885,1763478639688,-289.0,0.000276,7]
[394345886,1763478639697,-289.0,0.00027617,2]
[394345887,1763478639706,-289.0,0.00027632,2]
[394345888,1763478639715,-289.0,0.00027652,2]
[394345889,1763478639730,-289.0,0.00027677,7]
[394345890,1763478639740,-150.0,0.00027696,2]
[394345891,1763478639749,-300.0,0.000277,2]
[394345892,1763478639758,-289.0,0.00027756,2]
[394345893,1763478639767,-300.0,0.0002777,2]
[394345894,1763478639776,-289.0,0.000278,2]
[394345895,1763478639785,-300.0,0.00027839,2]
[394345896,1763478639795,-300.0,0.00027908,2]
[394345897,1763478639804,-320.22696995,0.00027977,2]
[394345898,1763478639814,-297.13662507,0.00028,30]
[394345899,1763478639823,-167.72909827,0.00028055,2]
[394345900,1763478639832,-241.2,0.00028325,2]
[394345901,1763478639842,-241.2,0.00029269,2]
[394345902,1763478639851,-205.79,0.00029362,30]
[394345903,1763478639861,-162.97814708,0.00029393,2]
[394345904,1763478639871,-150.0,0.00029858,2]
[394345905,1763478639880,-150.0,0.00029858,2]
[394345906,1763478639890,-685.623,0.00029858,2]
[394345907,1763478639900,-608.0,0.00029858,2]
[394345908,1763478639909,-575.0,0.00029858,2]
[394345909,1763478639918,-1318.0,0.00029858,2]
[394345910,1763478639927,-1599.0,0.00029858,2]
[394345911,1763478639936,-821.0,0.00029858,2]
[394345912,1763478639945,-306.747,0.00029858,2]
[394345913,1763478639955,-561.0,0.00029858,2]
[394345914,1763478639964,-6490.0,0.00029858,2]
[394345915,1763478639978,-2500.0025,0.00029977,2]
[394345916,1763478639988,-20969.9901234,0.0002999,3]
[394345917,1763478639997,-26524.76089775,0.0003,2]
[394345918,1763478640007,-3379.0,0.00030153,2]
[394345919,1763478640016,-241.2,0.00030214,2]
[394345920,1763478640026,-258.73394319,0.00030364,2]
[394345921,1763478640036,-167.72909827,0.00030751,15]
[394345922,1763478640051,-398.04,0.00030945,30]
[394345923,1763478640062,-241.2,0.00031158,2]
[394345924,1763478640071,-236.01492055,0.00031261,2]
[394345925,1763478640081,-205.79,0.00031817,30]
[394345926,1763478640091,-241.2,0.00032102,2]
[394345927,1763478640100,-2500.0025,0.0003284,2]
[394345928,1763478640110,-150.0,0.00032858,2]
[394345929,1763478640121,-150.0,0.00032858,2]
[394345930,1763478640130,-725.151,0.00032858,2]
[394345931,1763478640140,-1599.0,0.00032858,2]
[394345932,1763478640149,-821.0,0.00032858,2]
[394345933,1763478640158,-777.733,0.00032858,2]
[394345934,1763478640167,-241.2,0.00033046,2]
[394345935,1763478640176,-2000.0,0.00033125,120]
[394345936,1763478640185,-207.6,0.00033139,2]
[394345937,1763478640194,-488.0,0.0003315,7]
[394345938,1763478640204,-258.73394319,0.00033157,2]
[394345940,1763478640213,-5517.0,0.000334,3]
[394345941,1763478640223,-167.72909827,0.00033446,15]
[394345942,1763478640232,-344.78434648,0.00033972,8]
[394345943,1763478640242,-241.2,0.0003399,2]
[394345944,1763478640251,-166.66,0.00034085,30]
[394345945,1763478640262,-205.79,0.00034271,30]
[394345946,1763478640272,-5518.0,0.000343,5]
[394345947,1763478640282,-166.66,0.00034802,30]
[394345948,1763478640292,-241.2,0.00034934,2]
[394345949,1763478640302,-740.0,0.00035,10]
[394345950,1763478640312,-174252.0959,0.0003522,30]
[394345951,1763478640322,-162.9781471,0.00035272,2]
[394345952,1763478640332,-166.66,0.0003552,30]
[394345953,1763478640342,-2500.0025,0.00035704,2]
[394345954,1763478640354,-241.2,0.00035878,2]
[394345955,1763478640364,-250.0,0.00035879,2]
[394345956,1763478640375,-1312.34,0.00035879,120]
[394345957,1763478640385,-2000.0,0.00035879,2]
[394345958,1763478640395,-500.0,0.00035879,2]
[394345959,1763478640405,-563.71,0.00035879,120]
[394345960,1763478640415,-1458.76,0.00035879,120]
[394345961,1763478640425,-2751.0,0.00035879,120]
[394345962,1763478640434,-258.73394319,0.00035949,2]
[394345963,1763478640444,-398.04,0.00035992,30]
[394345964,1763478640453,-175.0,0.00036,30]
[394345965,1763478640462,-167.72909827,0.00036142,15]
[394345966,1763478640473,-166.66,0.00036237,30]
[394345967,1763478640483,-150.0,0.00036247,7]
[394345968,1763478640492,-150.0,0.00036247,7]
[394345969,1763478640502,-150.0,0.00036247,7]
[394345970,1763478640511,-150.0,0.00036247,7]
[394345971,1763478640521,-150.0,0.00036247,7]
[394345972,1763478640530,-274.87618597,0.00036247,7]
[394345973,1763478640540,-150.0,0.00036247,7]
[394345974,1763478640549,-168.66866561,0.00036247,7]
[394345975,1763478640559,-150.0,0.00036247,7]
[394345976,1763478640569,-150.0,0.00036247,7]
[394345977,1763478640578,-150.0,0.00036247,7]
[394345978,1763478640588,-150.00000001,0.00036247,7]
[394345979,1763478640598,-150.0,0.00036247,7]
[394345980,1763478640608,-150.0,0.00036247,7]
[394345981,1763478640617,-150.0,0.00036247,7]
[394345982,1763478640627,-500.0,0.00036723,30]
[394345983,1763478640637,-205.79,0.00036725,60]
[394345984,1763478640646,-447.376,0.00036888,7]
[394345985,1763478640656,-150.0,0.00036945,7]
[394345986,1763478640666,-150.0,0.00036945,7]
[394345987,1763478640676,-150.0,0.00036945,7]
[394345988,1763478640687,-150.0,0.00036945,7]
[394345989,1763478640697,-150.0,0.00036945,7]
[394345990,1763478640706,-150.0,0.00036945,7]
[394345991,1763478640716,-244.218,0.00036945,7]
[394345992,1763478640730,-166.66,0.00036955,30]
[394345993,1763478640740,-500.0,0.00036976,30]
[394345994,1763478640749,-629.56119453,0.00036986,15]
[394345995,1763478640759,-1035.12816329,0.00037,2]
[394345996,1763478640769,-500.0,0.00037098,30]
[394345997,1763478640779,-500.0,0.00037132,30]
[394345998,1763478640789,-500.0,0.00037155,30]
[394345999,1763478640799,-252.48590672,0.000372,120]
[394346000,1763478640809,-252.4859067,0.000372,120]
[394346001,1763478640818,-252.4859067,0.000372,120]
[394346002,1763478640827,-252.4859067,0.000372,120]
[394346003,1763478640837,-888.35,0.00037258,5]
[394346004,1763478640846,-500.0,0.00037319,30]
[394346005,1763478640855,-175.0,0.00037397,30]
[394346006,1763478640864,-1000.0,0.00037472,30]
[394346007,1763478640874,-1000.0,0.00037472,30]
[394346008,1763478640883,-1023.89500754,0.00037472,30]
[394346009,1763478640892,-1000.0,0.00037472,30]
[394346010,1763478640901,-500.0,0.00037643,30]
[394346011,1763478640911,-500.0,0.00037643,30]
[394346012,1763478640920,-166.66,0.00037673,30]
[394346013,1763478640929,-500.0,0.00037769,30]
[394346014,1763478640939,-513.06992934,0.00037796,30]
[394346015,1763478640948,-500.0,0.00037878,30]
[394346016,1763478640958,-500.0,0.00037955,30]
[394346017,1763478640967,-1033.0,0.00038,30]
[394346018,1763478640980,-605.02460778,0.00038,120]
[394346019,1763478640989,-500.18325099,0.00038,2]
[394346020,1763478640999,-1000.0,0.00038,120]
[394346021,1763478641009,-500.0,0.00038035,30]
[394346022,1763478641018,-500.0,0.00038072,30]
[394346023,1763478641027,-150.0,0.0003826,7]
[394346024,1763478641037,-150.0,0.0003826,7]
[394346025,1763478641047,-500.0,0.00038336,30]
[394346026,1763478641056,-500.0,0.00038356,3]
[394346027,1763478641068,-500.0,0.00038356,3]
[394346028,1763478641078,-500.0,0.00038356,3]
[394346029,1763478641088,-500.0,0.00038356,3]
[394346030,1763478641098,-500.0,0.00038356,3]
[394346031,1763478641108,-500.0,0.00038356,3]
[394346032,1763478641117,-500.0,0.00038356,3]
[394346033,1763478641127,-349.5,0.00038356,3]
[394346034,1763478641137,-300.0,0.00038356,3]
[394346035,1763478641146,-500.0,0.00038356,3]
[394346036,1763478641156,-305.21817829,0.00038356,3]
[394346037,1763478641165,-2088.19,0.00038356,2]
[394346038,1763478641175,-466.51829991,0.00038356,3]
[394346039,1763478641185,-500.0,0.00038356,2]
[394346040,1763478641195,-247.90715879,0.00038356,3]
[394346041,1763478641204,-300.0,0.00038356,2]
[394346042,1763478641213,-500.35613029,0.00038356,2]
[394346043,1763478641224,-500.0,0.00038356,3]
[394346044,1763478641234,-500.0,0.00038356,2]
[394346045,1763478641243,-300.0,0.00038356,2]
[394346046,1763478641253,-500.0,0.00038356,2]
[394346047,1763478641262,-815.13,0.00038356,3]
[394346048,1763478641272,-500.0,0.00038356,3]
[394346049,1763478641281,-2018.65,0.00038356,3]
[394346050,1763478641291,-500.0,0.00038356,3]
[394346051,1763478641302,-264.99067081,0.00038356,3]
[394346052,1763478641312,-500.0,0.00038356,3]
[394346053,1763478641322,-402.24564354,0.00038356,3]
[394346054,1763478641332,-4768.85,0.00038356,3]
[394346055,1763478641341,-2089.25,0.00038356,3]
[394346056,1763478641351,-573.28,0.00038356,3]
[394346057,1763478641361,-1327.44,0.00038356,3]
[394346058,1763478641370,-1774.84,0.00038356,3]
[394346059,1763478641380,-500.0,0.00038356,3]
[394346060,1763478641389,-1611.61,0.00038356,3]
[394346061,1763478641399,-164.0716568,0.00038356,3]
[394346062,1763478641409,-1166.9,0.00038356,3]
[394346063,1763478641419,-813.56,0.00038356,3]
[394346064,1763478641429,-1496.17,0.00038356,3]
[394346065,1763478641439,-500.0,0.00038356,3]
[394346066,1763478641450,-500.0,0.00038356,2]
[394346067,1763478641460,-500.0,0.00038356,3]
[394346068,1763478641473,-500.0,0.00038356,2]
[394346069,1763478641486,-500.0,0.00038356,3]
[394346070,1763478641496,-500.0,0.00038356,3]
[394346071,1763478641506,-155.38201057,0.00038356,3]
[394346072,1763478641517,-500.0,0.00038356,2]
[394346073,1763478641528,-1955.72,0.00038356,3]
[394346074,1763478641538,-500.0,0.00038356,3]
[394346075,1763478641548,-500.0,0.00038356,2]
[394346076,1763478641558,-150.76618811,0.00038356,5]
[394346077,1763478641567,-500.0,0.00038543,30]
[394346078,1763478641577,-500.0,0.00038599,30]